[Event "*** Titled Tuesday Blitz"]
[Site "Chess.com"]
[Date "2019.01.01"]
[Round "8"]
[White "PulpanJ"]
[Black "Zufi1811"]
[Result "1-0"]
[WhiteElo "2611"]
[BlackElo "2414"]
[TimeControl "180+2"]
[EndTime "14:59:26 PST"]
[Termination "PulpanJ won by resignation"]

1. g3 {[%clk 0:02:54.4]} 1... g6 {[%clk 0:02:58.8]} 2. Bg2 {[%clk 0:02:48]} 2...
Bg7 {[%clk 0:03:00.3]} 3. d4 {[%clk 0:02:39.2]} 3... d5 {[%clk 0:02:58.2]} 4.
Nf3 {[%clk 0:02:37.6]} 4... Nh6 {[%clk 0:02:56.5]} 5. c4 {[%clk 0:02:37.2]} 5...
c6 {[%clk 0:02:56]} 6. Nbd2 {[%clk 0:02:29.6]} 6... Nf5 {[%clk 0:02:52.6]} 7. e3
{[%clk 0:02:19.4]} 7... O-O {[%clk 0:02:50.7]} 8. O-O {[%clk 0:02:17.3]} 8...
Nd6 {[%clk 0:02:39.6]} 9. b3 {[%clk 0:02:05.3]} 9... Bf5 {[%clk 0:02:24.4]} 10.
Bb2 {[%clk 0:02:00.3]} 10... Bd3 {[%clk 0:02:10.3]} 11. Re1 {[%clk 0:01:59.2]}
11... dxc4 {[%clk 0:02:11.2]} 12. Ne5 {[%clk 0:01:55.6]} 12... Bf5 {[%clk
0:01:58.9]} 13. Ndxc4 {[%clk 0:01:55.8]} 13... Nd7 {[%clk 0:01:50.1]} 14. Nxd7
{[%clk 0:01:43.5]} 14... Qxd7 {[%clk 0:01:50.8]} 15. Rc1 {[%clk 0:01:38.2]}
15... Rad8 {[%clk 0:01:40.9]} 16. Qe2 {[%clk 0:01:25.1]} 16... Rfe8 {[%clk
0:01:29.3]} 17. Red1 {[%clk 0:01:24.7]} 17... Bg4 {[%clk 0:01:26.8]} 18. Bf3
{[%clk 0:01:22.5]} 18... Bxf3 {[%clk 0:01:26]} 19. Qxf3 {[%clk 0:01:24.4]} 19...
Qf5 {[%clk 0:01:25.2]} 20. Kg2 {[%clk 0:01:23.2]} 20... Ne4 {[%clk 0:01:15.9]}
21. Nd2 {[%clk 0:01:20.8]} 21... Qxf3+ {[%clk 0:01:07.6]} 22. Kxf3 {[%clk
0:01:21.1]} 22... Nxd2+ {[%clk 0:00:53.6]} 23. Rxd2 {[%clk 0:01:20.5]} 23... Rd7
{[%clk 0:00:50.9]} 24. Ke2 {[%clk 0:01:17.4]} 24... Red8 {[%clk 0:00:48.2]} 25.
Rdc2 {[%clk 0:01:05.9]} 25... e6 {[%clk 0:00:43.5]} 26. Ba3 {[%clk 0:01:06.1]}
26... e5 {[%clk 0:00:37.1]} 27. dxe5 {[%clk 0:01:07.9]} 27... Bxe5 {[%clk
0:00:37.8]} 28. Bb2 {[%clk 0:01:08.7]} 28... Bxb2 {[%clk 0:00:38]} 29. Rxb2
{[%clk 0:01:10.5]} 29... Kf8 {[%clk 0:00:37.4]} 30. h4 {[%clk 0:01:09.8]} 30...
Ke7 {[%clk 0:00:38.6]} 31. h5 {[%clk 0:01:02.8]} 31... Rd5 {[%clk 0:00:37.8]}
32. hxg6 {[%clk 0:01:03.7]} 32... hxg6 {[%clk 0:00:39.1]} 33. b4 {[%clk
0:01:05]} 33... R8d7 {[%clk 0:00:34]} 34. a4 {[%clk 0:01:04.4]} 34... a6 {[%clk
0:00:31.9]} 35. Rc5 {[%clk 0:01:00.6]} 35... Kd6 {[%clk 0:00:17.8]} 36. Rc4
{[%clk 0:00:59.4]} 36... Kc7 {[%clk 0:00:15.1]} 37. b5 {[%clk 0:00:58.3]} 37...
axb5 {[%clk 0:00:15.5]} 38. axb5 {[%clk 0:00:59.9]} 38... Kd6 {[%clk 0:00:14]}
39. bxc6 {[%clk 0:01:00.7]} 39... bxc6 {[%clk 0:00:15.9]} 40. Rb6 {[%clk
0:01:01.5]} 40... Rc7 {[%clk 0:00:17]} 41. Ra6 {[%clk 0:01:01.5]} 41... Rc5
{[%clk 0:00:16.1]} 42. Rd4+ {[%clk 0:01:02.5]} 42... Rd5 {[%clk 0:00:16.9]} 43.
Rc4 {[%clk 0:01:03.8]} 43... Rc5 {[%clk 0:00:17.9]} 44. Rf4 {[%clk 0:01:01.4]}
44... f5 {[%clk 0:00:17.2]} 45. g4 {[%clk 0:01:01.8]} 45... Ke5 {[%clk
0:00:14.4]} 46. gxf5 {[%clk 0:01:01.7]} 46... gxf5 {[%clk 0:00:16.3]} 47. Ra8
{[%clk 0:01:02.6]} 47... Rb7 {[%clk 0:00:14.3]} 48. Rf8 {[%clk 0:01:01.3]} 48...
Ke6 {[%clk 0:00:13.9]} 49. Kf3 {[%clk 0:00:49.9]} 49... Rb2 {[%clk 0:00:12.7]}
50. Kg3 {[%clk 0:00:40.3]} 50... Rd5 {[%clk 0:00:12.6]} 51. Rc8 {[%clk
0:00:39.4]} 51... Kd7 {[%clk 0:00:12.6]} 52. Rh8 {[%clk 0:00:37.5]} 52... Rb1
{[%clk 0:00:11.6]} 53. Rh5 {[%clk 0:00:37.8]} 53... Ke6 {[%clk 0:00:12]} 54.
Rh6+ {[%clk 0:00:38.8]} 54... Kd7 {[%clk 0:00:13.4]} 55. Ra4 {[%clk 0:00:39.6]}
55... Rg1+ {[%clk 0:00:12.6]} 56. Kf3 {[%clk 0:00:40.4]} 56... Kc7 {[%clk
0:00:12.5]} 57. Ra6 {[%clk 0:00:34.7]} 57... Rc1 {[%clk 0:00:07.5]} 58. Rh7+
{[%clk 0:00:35.5]} 58... Kb8 {[%clk 0:00:07.7]} 59. Rb6+ {[%clk 0:00:36.8]}
59... Ka8 {[%clk 0:00:08]} 60. Rbb7 {[%clk 0:00:36]} 60... Rb5 {[%clk 0:00:08]}
61. Ra7+ {[%clk 0:00:36.5]} 61... Kb8 {[%clk 0:00:08.6]} 62. Raf7 {[%clk
0:00:37]} 62... Ka8 {[%clk 0:00:09.8]} 63. Rh8+ {[%clk 0:00:36.5]} 63... Rb8
{[%clk 0:00:11.3]} 64. Rh5 {[%clk 0:00:36]} 64... Rb5 {[%clk 0:00:09.1]} 65.
Rhxf5 {[%clk 0:00:27.9]} 65... Rxf5+ {[%clk 0:00:11]} 66. Rxf5 {[%clk
0:00:29.8]} 66... Kb7 {[%clk 0:00:12.2]} 67. e4 {[%clk 0:00:30.1]} 67... Kc7
{[%clk 0:00:10.4]} 68. Ke3 {[%clk 0:00:29.9]} 68... Kd6 {[%clk 0:00:09.6]} 69.
f4 {[%clk 0:00:29.8]} 69... Re1+ {[%clk 0:00:09.7]} 70. Kd3 {[%clk 0:00:30.1]}
70... Rd1+ {[%clk 0:00:10.5]} 71. Kc2 {[%clk 0:00:26.7]} 71... Rd4 {[%clk
0:00:11.2]} 72. Re5 {[%clk 0:00:26.3]} 72... Ra4 {[%clk 0:00:07.3]} 73. Kd3
{[%clk 0:00:26.9]} 73... Ra3+ {[%clk 0:00:07.1]} 74. Ke2 {[%clk 0:00:27.3]}
74... Ra2+ {[%clk 0:00:07.8]} 75. Kf3 {[%clk 0:00:28.3]} 75... Ra3+ {[%clk
0:00:09]} 76. Kg4 {[%clk 0:00:29.6]} 76... c5 {[%clk 0:00:10.3]} 77. Rd5+ {[%clk
0:00:30.4]} 77... Kc6 {[%clk 0:00:11.4]} 78. f5 {[%clk 0:00:30]} 78... c4 {[%clk
0:00:12.6]} 79. Rd8 {[%clk 0:00:26.4]} 79... Kc5 {[%clk 0:00:11.3]} 80. f6
{[%clk 0:00:25.8]} 80... Ra1 {[%clk 0:00:11.2]} 81. Kf5 {[%clk 0:00:22.6]} 81...
Rf1+ {[%clk 0:00:10.7]} 82. Ke6 {[%clk 0:00:23.7]} 82... c3 {[%clk 0:00:11.9]}
83. e5 {[%clk 0:00:24]} 83... Kb4 {[%clk 0:00:11.5]} 84. Ke7 {[%clk 0:00:24.5]}
84... c2 {[%clk 0:00:08.6]} 85. Rb8+ {[%clk 0:00:25.5]} 85... Ka3 {[%clk
0:00:07.1]} 86. Rc8 {[%clk 0:00:26]} 86... c1=Q {[%clk 0:00:07.7]} 87. Rxc1
{[%clk 0:00:26.7]} 87... Rxc1 {[%clk 0:00:09.4]} 88. f7 {[%clk 0:00:28.6]} 1-0

[Event "*** Titled Tuesday Blitz"]
[Site "Chess.com"]
[Date "2019.01.01"]
[Round "9"]
[White "tgpgoat"]
[Black "ChessMavenYeti"]
[Result "1-0"]
[WhiteElo "1994"]
[BlackElo "2086"]
[TimeControl "180+2"]
[EndTime "15:03:27 PST"]
[Termination "tgpgoat won by checkmate"]

1. e4 {[%clk 0:02:41.4]} 1... e6 {[%clk 0:03:01]} 2. d4 {[%clk 0:02:41.7]} 2...
d5 {[%clk 0:03:02.6]} 3. Nd2 {[%clk 0:02:42.6]} 3... c5 {[%clk 0:03:00.1]} 4.
Ngf3 {[%clk 0:02:19.2]} 4... cxd4 {[%clk 0:03:00.5]} 5. Nxd4 {[%clk 0:02:16.8]}
5... Nf6 {[%clk 0:03:00.6]} 6. exd5 {[%clk 0:02:17]} 6... Qxd5 {[%clk
0:03:00.5]} 7. N2b3 {[%clk 0:02:13.1]} 7... Bd7 {[%clk 0:02:57.9]} 8. Be2 {[%clk
0:02:08.3]} 8... Nc6 {[%clk 0:02:53.7]} 9. Bf3 {[%clk 0:02:08.5]} 9... Qe5+
{[%clk 0:02:53.5]} 10. Be3 {[%clk 0:02:07.6]} 10... O-O-O {[%clk 0:02:51]} 11.
O-O {[%clk 0:02:06.5]} 11... Nxd4 {[%clk 0:02:37]} 12. Bxd4 {[%clk 0:02:02.4]}
12... Qb8 {[%clk 0:02:36.6]} 13. Qe2 {[%clk 0:02:00.4]} 13... Bc6 {[%clk
0:02:08.8]} 14. Bxc6 {[%clk 0:01:58.7]} 14... bxc6 {[%clk 0:02:08.4]} 15. Na5
{[%clk 0:01:56.5]} 15... c5 {[%clk 0:02:03.7]} 16. Qa6+ {[%clk 0:01:54.8]} 16...
Kc7 {[%clk 0:02:04]} 17. Qc6# {[%clk 0:01:55.2]} 1-0

[Event "*** Titled Tuesday Blitz"]
[Site "Chess.com"]
[Date "2019.01.01"]
[Round "9"]
[White "andresgv36"]
[Black "vladimirdamjanovic"]
[Result "0-1"]
[WhiteElo "2358"]
[BlackElo "2590"]
[TimeControl "180+2"]
[EndTime "15:03:39 PST"]
[Termination "vladimirdamjanovic won by resignation"]

1. d4 {[%clk 0:03:01.9]} 1... Nf6 {[%clk 0:03:00.6]} 2. Bf4 {[%clk 0:03:02.3]}
2... c5 {[%clk 0:03:00.9]} 3. d5 {[%clk 0:03:01.8]} 3... d6 {[%clk 0:03:00.4]}
4. Nc3 {[%clk 0:03:00.3]} 4... g6 {[%clk 0:03:01.1]} 5. e4 {[%clk 0:03:01.1]}
5... Bg7 {[%clk 0:03:02]} 6. h3 {[%clk 0:03:02.1]} 6... O-O {[%clk 0:03:02.2]}
7. Nf3 {[%clk 0:03:03]} 7... b5 {[%clk 0:02:50.5]} 8. e5 {[%clk 0:02:47.2]} 8...
dxe5 {[%clk 0:02:47]} 9. Nxe5 {[%clk 0:02:46.2]} 9... b4 {[%clk 0:02:44.6]} 10.
Na4 {[%clk 0:02:41.9]} 10... Nxd5 {[%clk 0:02:15.4]} 11. Bh2 {[%clk 0:02:41.9]}
11... Qd6 {[%clk 0:01:28.2]} 12. Be2 {[%clk 0:02:28.8]} 12... Bxe5 {[%clk
0:01:27.4]} 13. Bf3 {[%clk 0:02:25]} 13... Bb7 {[%clk 0:01:15.5]} 0-1

[Event "*** Titled Tuesday Blitz"]
[Site "Chess.com"]
[Date "2019.01.01"]
[Round "9"]
[White "NemtsevIgor"]
[Black "florianschwabeneder"]
[Result "0-1"]
[WhiteElo "2301"]
[BlackElo "2460"]
[TimeControl "180+2"]
[EndTime "15:04:16 PST"]
[Termination "florianschwabeneder won by resignation"]

1. d4 {[%clk 0:03:01.9]} 1... e6 {[%clk 0:02:57.5]} 2. e4 {[%clk 0:03:02]} 2...
d5 {[%clk 0:02:58]} 3. Be3 {[%clk 0:03:03.2]} 3... dxe4 {[%clk 0:02:57.8]} 4. f3
{[%clk 0:03:03.7]} 4... exf3 {[%clk 0:02:58.3]} 5. Nxf3 {[%clk 0:03:04.8]} 5...
c5 {[%clk 0:02:53.2]} 6. c3 {[%clk 0:02:52.9]} 6... cxd4 {[%clk 0:02:52.8]} 7.
cxd4 {[%clk 0:02:53.7]} 7... Nf6 {[%clk 0:02:53.2]} 8. Bd3 {[%clk 0:02:53.5]}
8... Nc6 {[%clk 0:02:53.5]} 9. O-O {[%clk 0:02:54.1]} 9... Be7 {[%clk
0:02:54.5]} 10. Nc3 {[%clk 0:02:48.8]} 10... O-O {[%clk 0:02:55.5]} 11. Qe1
{[%clk 0:02:46.1]} 11... Nb4 {[%clk 0:02:52.2]} 12. Bb1 {[%clk 0:02:45.9]} 12...
Nbd5 {[%clk 0:02:50.9]} 13. Kh1 {[%clk 0:02:43.8]} 13... Nxe3 {[%clk 0:02:50.5]}
14. Qxe3 {[%clk 0:02:44.6]} 14... b6 {[%clk 0:02:51.6]} 15. Ne5 {[%clk
0:02:38.5]} 15... Bb7 {[%clk 0:02:52.7]} 16. Bc2 {[%clk 0:02:31.1]} 16... Rc8
{[%clk 0:02:52.6]} 17. Rad1 {[%clk 0:02:30.7]} 17... Nd5 {[%clk 0:02:50.5]} 18.
Qh3 {[%clk 0:02:30]} 18... g6 {[%clk 0:02:46.5]} 19. Bxg6 {[%clk 0:02:18.3]}
19... hxg6 {[%clk 0:02:44.9]} 20. Nxg6 {[%clk 0:02:19.5]} 20... fxg6 {[%clk
0:02:45.6]} 21. Qxe6+ {[%clk 0:02:19.6]} 21... Kg7 {[%clk 0:02:46.8]} 22. Rxf8
{[%clk 0:02:01.1]} 22... Bxf8 {[%clk 0:02:46.4]} 23. Rf1 {[%clk 0:01:58.2]}
23... Qe7 {[%clk 0:02:45]} 24. Qg4 {[%clk 0:01:36.4]} 24... Nxc3 {[%clk
0:02:45.2]} 25. bxc3 {[%clk 0:01:37.7]} 25... Rxc3 {[%clk 0:02:46.2]} 0-1

[Event "*** Titled Tuesday Blitz"]
[Site "Chess.com"]
[Date "2019.01.01"]
[Round "9"]
[White "VerdeNotte"]
[Black "jerom555888"]
[Result "1-0"]
[WhiteElo "2843"]
[BlackElo "2705"]
[TimeControl "180+2"]
[EndTime "15:05:17 PST"]
[Termination "VerdeNotte won by resignation"]

1. g3 {[%clk 0:03:01.9]} 1... d6 {[%clk 0:02:56.2]} 2. Bg2 {[%clk 0:03:03]} 2...
e5 {[%clk 0:02:57.4]} 3. b3 {[%clk 0:03:04]} 3... f5 {[%clk 0:02:50.5]} 4. Bb2
{[%clk 0:03:05.2]} 4... c5 {[%clk 0:02:44.6]} 5. e3 {[%clk 0:03:04.5]} 5... Nc6
{[%clk 0:02:44.6]} 6. Ne2 {[%clk 0:03:05.3]} 6... g6 {[%clk 0:02:41.2]} 7. d4
{[%clk 0:03:06.3]} 7... exd4 {[%clk 0:02:41.7]} 8. Bxc6+ {[%clk 0:02:47.8]} 8...
bxc6 {[%clk 0:02:42.2]} 9. Nxd4 {[%clk 0:02:48.7]} 9... cxd4 {[%clk 0:02:33.1]}
10. Qxd4 {[%clk 0:02:48.9]} 10... Nf6 {[%clk 0:02:34.3]} 11. Qxf6 {[%clk
0:02:49.4]} 11... Qxf6 {[%clk 0:02:35.9]} 12. Bxf6 {[%clk 0:02:50.6]} 12... Rg8
{[%clk 0:02:37.2]} 13. Nd2 {[%clk 0:02:51.5]} 13... a5 {[%clk 0:02:20.4]} 14.
Nc4 {[%clk 0:02:48.7]} 14... Ra6 {[%clk 0:02:01.5]} 15. O-O-O {[%clk 0:02:37.2]}
15... d5 {[%clk 0:02:02.6]} 16. Nb2 {[%clk 0:02:38.3]} 16... Ba3 {[%clk
0:02:00.4]} 17. Kb1 {[%clk 0:02:39.2]} 17... Kf7 {[%clk 0:01:56.3]} 18. Bc3
{[%clk 0:02:39.6]} 18... g5 {[%clk 0:01:49.1]} 19. Rd4 {[%clk 0:02:40.1]} 19...
Be6 {[%clk 0:01:48]} 20. Ra4 {[%clk 0:02:40.7]} 20... Bxb2 {[%clk 0:01:47.4]}
21. Kxb2 {[%clk 0:02:42]} 21... Rga8 {[%clk 0:01:48.4]} 22. f4 {[%clk
0:02:34.1]} 22... g4 {[%clk 0:01:47.9]} 23. h3 {[%clk 0:02:35.2]} 23... Kg6
{[%clk 0:01:44.6]} 24. hxg4 {[%clk 0:02:21]} 24... fxg4 {[%clk 0:01:45.7]} 25.
e4 {[%clk 0:02:22.4]} 25... dxe4 {[%clk 0:01:47]} 26. Rxe4 {[%clk 0:02:18.6]}
26... Bd5 {[%clk 0:01:39.2]} 27. f5+ {[%clk 0:02:19.7]} 27... Kg5 {[%clk
0:01:33.9]} 28. Bd2+ {[%clk 0:02:14.3]} 28... Kxf5 {[%clk 0:01:25.7]} 29. Rf4+
{[%clk 0:02:15.3]} 29... Ke5 {[%clk 0:01:22.6]} 30. Rh6 {[%clk 0:02:10.3]} 30...
Bf3 {[%clk 0:01:21.4]} 31. Bc3+ {[%clk 0:02:02.9]} 31... Kd5 {[%clk 0:01:22.3]}
32. Rf5+ {[%clk 0:02:04]} 1-0

[Event "*** Titled Tuesday Blitz"]
[Site "Chess.com"]
[Date "2019.01.01"]
[Round "9"]
[White "mitrabhaa"]
[Black "Korchmar_Vasiliy"]
[Result "0-1"]
[WhiteElo "2613"]
[BlackElo "2795"]
[TimeControl "180+2"]
[EndTime "15:05:23 PST"]
[Termination "Korchmar_Vasiliy won by resignation"]

1. Nf3 {[%clk 0:03:01.6]} 1... c5 {[%clk 0:03:01.1]} 2. g3 {[%clk 0:02:59.5]}
2... Nc6 {[%clk 0:03:02]} 3. Bg2 {[%clk 0:03:01.1]} 3... g6 {[%clk 0:03:03]} 4.
O-O {[%clk 0:02:59.8]} 4... Bg7 {[%clk 0:03:04.4]} 5. c4 {[%clk 0:02:56.2]} 5...
e5 {[%clk 0:03:05.2]} 6. Nc3 {[%clk 0:02:56.8]} 6... Nge7 {[%clk 0:03:06.4]} 7.
a3 {[%clk 0:02:56.1]} 7... a5 {[%clk 0:03:07]} 8. d3 {[%clk 0:02:56.9]} 8... d6
{[%clk 0:03:07.3]} 9. Ne1 {[%clk 0:02:58.1]} 9... Be6 {[%clk 0:03:08.4]} 10. Nd5
{[%clk 0:02:58.5]} 10... O-O {[%clk 0:03:05.5]} 11. Nc2 {[%clk 0:02:58.5]} 11...
Rb8 {[%clk 0:03:02.6]} 12. Bd2 {[%clk 0:02:55.9]} 12... b5 {[%clk 0:02:59.9]}
13. Bc3 {[%clk 0:02:50.9]} 13... Qd7 {[%clk 0:02:47.6]} 14. Nce3 {[%clk
0:02:49.8]} 14... f5 {[%clk 0:02:45.9]} 15. Nxe7+ {[%clk 0:02:47.9]} 15... Nxe7
{[%clk 0:02:47.8]} 16. cxb5 {[%clk 0:02:47.5]} 16... Rxb5 {[%clk 0:02:41.5]} 17.
a4 {[%clk 0:02:48.1]} 17... Rbb8 {[%clk 0:02:39.2]} 18. Nc4 {[%clk 0:02:49.5]}
18... Nc6 {[%clk 0:02:13.1]} 19. Qd2 {[%clk 0:02:42.8]} 19... Nd4 {[%clk
0:02:04.8]} 20. Nxa5 {[%clk 0:02:40.8]} 20... f4 {[%clk 0:02:01.7]} 21. e3
{[%clk 0:02:34.8]} 21... f3 {[%clk 0:01:55.9]} 22. Bh1 {[%clk 0:02:35.2]} 22...
Ne2+ {[%clk 0:01:56.7]} 23. Qxe2 {[%clk 0:02:31.7]} 23... fxe2 {[%clk
0:01:58.6]} 24. Rfe1 {[%clk 0:02:33.2]} 24... Bg4 {[%clk 0:01:43.3]} 25. Nc4
{[%clk 0:02:27.4]} 25... Qf7 {[%clk 0:01:31.3]} 26. f4 {[%clk 0:02:27.8]} 26...
exf4 {[%clk 0:01:28.9]} 27. gxf4 {[%clk 0:02:26.3]} 27... Bxc3 {[%clk
0:01:29.2]} 28. bxc3 {[%clk 0:02:27.4]} 28... Qf6 {[%clk 0:01:24.1]} 29. a5
{[%clk 0:02:26.1]} 29... Qxc3 {[%clk 0:01:21.4]} 30. Kf2 {[%clk 0:02:18.5]}
30... Qxd3 {[%clk 0:01:19.8]} 31. Rec1 {[%clk 0:02:19.9]} 31... e1=Q+ {[%clk
0:01:17.8]} 0-1

[Event "*** Titled Tuesday Blitz"]
[Site "Chess.com"]
[Date "2019.01.01"]
[Round "9"]
[White "penguingm1"]
[Black "ramses135"]
[Result "0-1"]
[WhiteElo "2780"]
[BlackElo "2514"]
[TimeControl "180+2"]
[EndTime "15:05:37 PST"]
[Termination "ramses135 won by resignation"]

1. d4 {[%clk 0:02:54.4]} 1... f5 {[%clk 0:03:00.6]} 2. Nf3 {[%clk 0:02:53.9]}
2... Nf6 {[%clk 0:03:01.5]} 3. g3 {[%clk 0:02:55.2]} 3... g6 {[%clk 0:03:02.2]}
4. Bg2 {[%clk 0:02:56.7]} 4... Bg7 {[%clk 0:03:03.8]} 5. O-O {[%clk 0:02:58.2]}
5... O-O {[%clk 0:03:05.5]} 6. b3 {[%clk 0:02:59.6]} 6... d6 {[%clk 0:03:07.1]}
7. Bb2 {[%clk 0:03:01]} 7... Qe8 {[%clk 0:03:08.1]} 8. Nbd2 {[%clk 0:03:02]}
8... Nc6 {[%clk 0:03:08.1]} 9. Re1 {[%clk 0:03:01.6]} 9... e5 {[%clk 0:03:08.8]}
10. dxe5 {[%clk 0:03:00.1]} 10... dxe5 {[%clk 0:03:10.7]} 11. e4 {[%clk
0:03:01.3]} 11... f4 {[%clk 0:03:10.5]} 12. gxf4 {[%clk 0:02:46.1]} 12... Nh5
{[%clk 0:03:08.3]} 13. fxe5 {[%clk 0:02:35]} 13... Nf4 {[%clk 0:03:08.8]} 14.
Nc4 {[%clk 0:02:22.7]} 14... Bg4 {[%clk 0:02:54.6]} 15. Ne3 {[%clk 0:02:03.9]}
15... Bh5 {[%clk 0:02:53.9]} 16. Bh1 {[%clk 0:01:51.4]} 16... Rd8 {[%clk
0:02:23.9]} 17. Nd5 {[%clk 0:01:39.2]} 17... Nh3+ {[%clk 0:02:21.4]} 18. Kf1
{[%clk 0:01:39.5]} 18... Nxe5 {[%clk 0:02:15.1]} 19. Re3 {[%clk 0:01:10]} 19...
c6 {[%clk 0:02:08.7]} 20. Qd4 {[%clk 0:01:09.9]} 20... Bxf3 {[%clk 0:01:57.9]}
21. Bxf3 {[%clk 0:01:05.6]} 21... Rd7 {[%clk 0:01:34.3]} 0-1

[Event "*** Titled Tuesday Blitz"]
[Site "Chess.com"]
[Date "2019.01.01"]
[Round "9"]
[White "Supernotar"]
[Black "BrianWall"]
[Result "1-0"]
[WhiteElo "2463"]
[BlackElo "2222"]
[TimeControl "180+2"]
[EndTime "15:05:42 PST"]
[Termination "Supernotar won by resignation"]

1. d4 {[%clk 0:03:00.3]} 1... Nc6 {[%clk 0:02:58.2]} 2. c4 {[%clk 0:02:55.2]}
2... e5 {[%clk 0:02:58]} 3. dxe5 {[%clk 0:02:56.3]} 3... Nxe5 {[%clk 0:02:58.6]}
4. e3 {[%clk 0:02:57.6]} 4... Nf6 {[%clk 0:02:58.5]} 5. Nc3 {[%clk 0:02:58]}
5... Bb4 {[%clk 0:02:57.8]} 6. Bd2 {[%clk 0:02:58.8]} 6... O-O {[%clk
0:02:57.7]} 7. a3 {[%clk 0:02:59.8]} 7... Be7 {[%clk 0:02:55]} 8. Be2 {[%clk
0:03:00.5]} 8... Re8 {[%clk 0:02:55.1]} 9. Nf3 {[%clk 0:03:01.1]} 9... d6 {[%clk
0:02:54.2]} 10. O-O {[%clk 0:02:58.3]} 10... Bf5 {[%clk 0:02:54]} 11. Nd4 {[%clk
0:02:55.7]} 11... Bg6 {[%clk 0:02:53.9]} 12. b3 {[%clk 0:02:55.5]} 12... Ne4
{[%clk 0:02:49.4]} 13. Nxe4 {[%clk 0:02:50.5]} 13... Bxe4 {[%clk 0:02:49.1]} 14.
f3 {[%clk 0:02:49.6]} 14... Bc6 {[%clk 0:02:39.6]} 15. e4 {[%clk 0:02:31.7]}
15... Bd7 {[%clk 0:02:36.7]} 16. Bc3 {[%clk 0:02:31.6]} 16... Nc6 {[%clk
0:02:37.1]} 17. Qd2 {[%clk 0:02:27]} 17... Bf6 {[%clk 0:02:36.5]} 18. Rad1
{[%clk 0:02:24.7]} 18... Nxd4 {[%clk 0:02:36.6]} 19. Bxd4 {[%clk 0:02:25.6]}
19... Bxd4+ {[%clk 0:02:37.5]} 20. Qxd4 {[%clk 0:02:26.5]} 20... b6 {[%clk
0:02:38.7]} 21. Rd2 {[%clk 0:02:24.7]} 21... Qe7 {[%clk 0:02:38.8]} 22. Rfd1
{[%clk 0:02:25]} 22... Qe5 {[%clk 0:02:39.6]} 23. Bf1 {[%clk 0:02:21.8]} 23...
Qxd4+ {[%clk 0:02:38.6]} 24. Rxd4 {[%clk 0:02:22.5]} 24... a5 {[%clk 0:02:39.6]}
25. Kf2 {[%clk 0:02:23]} 25... f6 {[%clk 0:02:39.6]} 26. h4 {[%clk 0:02:19.7]}
26... Bc6 {[%clk 0:02:39.9]} 27. g3 {[%clk 0:02:19.5]} 27... h6 {[%clk
0:02:40.1]} 28. Bh3 {[%clk 0:02:18.9]} 28... Re7 {[%clk 0:02:41]} 29. R4d2
{[%clk 0:02:15.8]} 29... Bd7 {[%clk 0:02:41]} 30. Bxd7 {[%clk 0:02:15.8]} 30...
Rxd7 {[%clk 0:02:41.3]} 31. h5 {[%clk 0:02:15.6]} 31... Re7 {[%clk 0:02:41.6]}
32. g4 {[%clk 0:02:16.3]} 32... Kf7 {[%clk 0:02:41.8]} 33. Rd5 {[%clk
0:02:17.2]} 33... Rae8 {[%clk 0:02:42.2]} 34. R1d2 {[%clk 0:02:15.7]} 34... Re5
{[%clk 0:02:42.6]} 35. Ke3 {[%clk 0:02:12.9]} 35... Rxd5 {[%clk 0:02:42.8]} 36.
cxd5 {[%clk 0:02:11.4]} 36... Ke7 {[%clk 0:02:43.6]} 37. Kd4 {[%clk 0:02:09.2]}
37... Kd7 {[%clk 0:02:43.9]} 38. Kc4 {[%clk 0:02:10.4]} 38... c6 {[%clk
0:02:42.6]} 39. dxc6+ {[%clk 0:02:08.3]} 39... Kxc6 {[%clk 0:02:43]} 40. a4
{[%clk 0:02:09.4]} 40... Re5 {[%clk 0:02:43.1]} 41. Rd5 {[%clk 0:02:08.8]} 41...
Rxd5 {[%clk 0:02:34.1]} 42. exd5+ {[%clk 0:02:09.4]} 42... Kc7 {[%clk 0:02:35]}
43. Kb5 {[%clk 0:02:07.5]} 43... Kb7 {[%clk 0:02:33.8]} 44. f4 {[%clk
0:02:08.5]} 44... f5 {[%clk 0:02:09.7]} 45. gxf5 {[%clk 0:02:07.9]} 45... Kc7
{[%clk 0:02:09.6]} 46. Ka6 {[%clk 0:02:08.5]} 46... Kd7 {[%clk 0:02:09.6]} 47.
Kxb6 {[%clk 0:02:08]} 47... Ke7 {[%clk 0:02:11]} 48. Kxa5 {[%clk 0:02:09]} 48...
Kf6 {[%clk 0:02:12.9]} 49. b4 {[%clk 0:02:10.4]} 49... Kxf5 {[%clk 0:02:14.8]}
50. b5 {[%clk 0:02:11.6]} 50... Ke4 {[%clk 0:02:14.5]} 51. b6 {[%clk 0:02:12.8]}
51... Kxd5 {[%clk 0:02:15.6]} 52. b7 {[%clk 0:02:13.6]} 1-0

[Event "*** Titled Tuesday Blitz"]
[Site "Chess.com"]
[Date "2019.01.01"]
[Round "9"]
[White "evgenyermolaev"]
[Black "wannabe2700"]
[Result "0-1"]
[WhiteElo "2482"]
[BlackElo "2551"]
[TimeControl "180+2"]
[EndTime "15:05:49 PST"]
[Termination "wannabe2700 won by resignation"]

1. e4 {[%clk 0:03:01.7]} 1... e6 {[%clk 0:03:00.8]} 2. d4 {[%clk 0:03:02.5]}
2... d5 {[%clk 0:03:02.7]} 3. Nc3 {[%clk 0:03:04.2]} 3... Nf6 {[%clk 0:03:02.6]}
4. e5 {[%clk 0:03:05.2]} 4... Nfd7 {[%clk 0:03:03.7]} 5. Nf3 {[%clk 0:03:06.6]}
5... c5 {[%clk 0:03:04.6]} 6. dxc5 {[%clk 0:03:08.2]} 6... Nc6 {[%clk
0:03:04.5]} 7. Bf4 {[%clk 0:03:09.6]} 7... Nxc5 {[%clk 0:03:01]} 8. Be2 {[%clk
0:03:10.4]} 8... Be7 {[%clk 0:03:02.1]} 9. O-O {[%clk 0:03:10.7]} 9... a6 {[%clk
0:02:59.8]} 10. Re1 {[%clk 0:03:05]} 10... d4 {[%clk 0:03:00.8]} 11. Nb1 {[%clk
0:03:00]} 11... g5 {[%clk 0:03:02.4]} 12. Bg3 {[%clk 0:02:57.2]} 12... h5 {[%clk
0:03:03.7]} 13. h3 {[%clk 0:02:53.6]} 13... g4 {[%clk 0:03:05]} 14. hxg4 {[%clk
0:02:54.2]} 14... hxg4 {[%clk 0:03:06.9]} 15. Nh2 {[%clk 0:02:55.9]} 15... Bh4
{[%clk 0:03:08.5]} 16. Nxg4 {[%clk 0:02:48]} 16... Bxg3 {[%clk 0:03:08.9]} 17.
fxg3 {[%clk 0:02:48.8]} 17... Qg5 {[%clk 0:03:02.5]} 18. Bf3 {[%clk 0:02:43.6]}
18... Bd7 {[%clk 0:02:55.1]} 19. Bxc6 {[%clk 0:02:05.9]} 19... Bxc6 {[%clk
0:02:56.3]} 20. Nf6+ {[%clk 0:02:07.1]} 20... Kf8 {[%clk 0:02:23]} 21. Qxd4
{[%clk 0:02:07.7]} 21... Qxg3 {[%clk 0:02:24]} 22. Qxc5+ {[%clk 0:01:17.1]}
22... Kg7 {[%clk 0:02:24.2]} 23. Re2 {[%clk 0:01:18.8]} 23... Qh2+ {[%clk
0:02:24.7]} 24. Kf1 {[%clk 0:00:59.7]} 24... Qf4+ {[%clk 0:02:26.6]} 25. Rf2
{[%clk 0:00:48]} 25... Bb5+ {[%clk 0:02:19.7]} 26. Kg1 {[%clk 0:00:16]} 26...
Qc1+ {[%clk 0:02:19.6]} 0-1